[Event "*** Titled Tuesday Blitz"]
[Site "Chess.com"]
[Date "2021.04.27"]
[Round "7"]
[White "secretsuperstar7"]
[Black "davigator"]
[Result "0-1"]
[WhiteElo "2209"]
[BlackElo "2433"]
[TimeControl "180+1"]
[EndTime "11:15:19 PDT"]
[Termination "davigator won on time"]

1. d4 {[%clk 0:03:00.9]} 1... Nf6 {[%clk 0:02:58.6]} 2. c4 {[%clk 0:02:59.2]}
2... e6 {[%clk 0:02:58.3]} 3. Nc3 {[%clk 0:02:58.2]} 3... Bb4 {[%clk 0:02:58]}
4. Qc2 {[%clk 0:02:51.5]} 4... c5 {[%clk 0:02:57.3]} 5. Nf3 {[%clk 0:02:46.3]}
5... Nc6 {[%clk 0:02:53.9]} 6. e3 {[%clk 0:02:45.8]} 6... O-O {[%clk 0:02:51.7]}
7. a3 {[%clk 0:02:44.5]} 7... cxd4 {[%clk 0:02:49.4]} 8. exd4 {[%clk 0:02:43.5]}
8... Bxc3+ {[%clk 0:02:46.3]} 9. bxc3 {[%clk 0:02:41.2]} 9... d6 {[%clk
0:02:45]} 10. Bd3 {[%clk 0:02:39.1]} 10... h6 {[%clk 0:02:43.8]} 11. O-O {[%clk
0:02:38]} 11... e5 {[%clk 0:02:42.8]} 12. h3 {[%clk 0:02:18.8]} 12... Re8 {[%clk
0:02:39.9]} 13. Bf5 {[%clk 0:02:15.5]} 13... e4 {[%clk 0:02:32.7]} 14. Bxc8
{[%clk 0:02:06.7]} 14... Rxc8 {[%clk 0:02:33.3]} 15. Nd2 {[%clk 0:01:52.9]}
15... Na5 {[%clk 0:02:28.1]} 16. Re1 {[%clk 0:01:39.3]} 16... Qe7 {[%clk
0:01:59.2]} 17. Qa4 {[%clk 0:00:44.9]} 17... Qc7 {[%clk 0:01:57.8]} 18. Rb1
{[%clk 0:00:42]} 18... b6 {[%clk 0:01:53.8]} 19. Qc2 {[%clk 0:00:36.9]} 19... d5
{[%clk 0:01:36.6]} 20. cxd5 {[%clk 0:00:27.1]} 20... Qxc3 {[%clk 0:01:36.6]} 21.
Qxc3 {[%clk 0:00:21.8]} 21... Rxc3 {[%clk 0:01:36.9]} 22. Bb2 {[%clk 0:00:14.5]}
22... Rd3 {[%clk 0:01:29.7]} 23. Nf3 {[%clk 0:00:09.1]} 23... exf3 {[%clk
0:01:24.7]} 24. Rxe8+ {[%clk 0:00:06.2]} 24... Nxe8 {[%clk 0:01:24.7]} 25. Re1
{[%clk 0:00:06.2]} 25... Nd6 {[%clk 0:01:24]} 26. Re7 {[%clk 0:00:04.3]} 26...
Nac4 {[%clk 0:01:15.2]} 0-1

[Event "*** Titled Tuesday Blitz"]
[Site "Chess.com"]
[Date "2021.04.27"]
[Round "7"]
[White "david_alex"]
[Black "Julianos82"]
[Result "0-1"]
[WhiteElo "2110"]
[BlackElo "2315"]
[TimeControl "180+1"]
[EndTime "11:15:21 PDT"]
[Termination "Julianos82 won by resignation"]

1. d4 {[%clk 0:02:57.6]} 1... d5 {[%clk 0:02:59.1]} 2. Nf3 {[%clk 0:02:58.5]}
2... c6 {[%clk 0:02:58.7]} 3. g3 {[%clk 0:02:59.1]} 3... Bg4 {[%clk 0:02:57.3]}
4. Bg2 {[%clk 0:02:59.4]} 4... Nd7 {[%clk 0:02:55.9]} 5. O-O {[%clk 0:02:59.8]}
5... e6 {[%clk 0:02:53.8]} 6. c4 {[%clk 0:02:59.3]} 6... Bd6 {[%clk 0:02:51.4]}
7. Qb3 {[%clk 0:02:54]} 7... Rb8 {[%clk 0:02:49.3]} 8. Nc3 {[%clk 0:02:52.5]}
8... f5 {[%clk 0:02:48]} 9. h3 {[%clk 0:02:33.8]} 9... Bh5 {[%clk 0:02:46.3]}
10. cxd5 {[%clk 0:02:21.2]} 10... exd5 {[%clk 0:02:43.9]} 11. Bf4 {[%clk
0:02:14.8]} 11... Qe7 {[%clk 0:02:26.7]} 12. Rfe1 {[%clk 0:02:05]} 12... Ngf6
{[%clk 0:02:22.4]} 13. Bxd6 {[%clk 0:01:55.7]} 13... Qxd6 {[%clk 0:02:23.3]} 14.
Qa3 {[%clk 0:01:50.3]} 14... Qxa3 {[%clk 0:02:15.5]} 15. bxa3 {[%clk 0:01:51.2]}
15... Bxf3 {[%clk 0:02:07.9]} 16. Bxf3 {[%clk 0:01:37.5]} 16... Kf7 {[%clk
0:02:05.9]} 17. Rab1 {[%clk 0:01:36.7]} 17... Rhe8 {[%clk 0:02:00.5]} 18. e3
{[%clk 0:01:37]} 18... Nb6 {[%clk 0:01:54.3]} 19. Be2 {[%clk 0:01:33.3]} 19...
Ne4 {[%clk 0:01:52]} 20. Nxe4 {[%clk 0:01:33.3]} 20... fxe4 {[%clk 0:01:52.9]}
21. a4 {[%clk 0:01:33.3]} 21... Nxa4 {[%clk 0:01:32.6]} 22. Rec1 {[%clk
0:01:33.1]} 22... Nb6 {[%clk 0:01:29]} 23. Rb4 {[%clk 0:01:30]} 23... Ke7 {[%clk
0:01:19.2]} 24. a4 {[%clk 0:01:28.8]} 24... Kd6 {[%clk 0:01:16.5]} 25. a5 {[%clk
0:01:28.6]} 25... Na8 {[%clk 0:01:14.6]} 26. Rcb1 {[%clk 0:01:19]} 26... b5
{[%clk 0:01:08.8]} 27. axb6 {[%clk 0:01:18]} 27... Rxb6 {[%clk 0:01:07.4]} 28.
Rxb6 {[%clk 0:01:16]} 28... axb6 {[%clk 0:01:02.3]} 29. Ra1 {[%clk 0:01:16]}
29... Nc7 {[%clk 0:00:59.4]} 30. Kf1 {[%clk 0:01:12.2]} 30... Ra8 {[%clk
0:00:58.9]} 31. Rxa8 {[%clk 0:01:00.1]} 31... Nxa8 {[%clk 0:00:59.8]} 32. f3
{[%clk 0:01:00.5]} 32... exf3 {[%clk 0:00:57.1]} 33. Bxf3 {[%clk 0:01:01.4]}
33... Nc7 {[%clk 0:00:56.7]} 34. Ke2 {[%clk 0:01:01.6]} 34... Ne6 {[%clk
0:00:54]} 35. Kd3 {[%clk 0:01:01.3]} 35... c5 {[%clk 0:00:53.2]} 36. e4 {[%clk
0:00:59]} 36... Nxd4 {[%clk 0:00:51.3]} 37. Bg2 {[%clk 0:00:58.3]} 37... dxe4+
{[%clk 0:00:48.6]} 38. Bxe4 {[%clk 0:00:59.2]} 38... h6 {[%clk 0:00:47.8]} 39.
g4 {[%clk 0:00:59.1]} 39... Ke5 {[%clk 0:00:47.6]} 0-1

[Event "*** Titled Tuesday Blitz"]
[Site "Chess.com"]
[Date "2021.04.27"]
[Round "7"]
[White "djano"]
[Black "moro182"]
[Result "0-1"]
[WhiteElo "2485"]
[BlackElo "2701"]
[TimeControl "180+1"]
[EndTime "11:15:24 PDT"]
[Termination "moro182 won by resignation"]

1. e4 {[%clk 0:03:00.9]} 1... g6 {[%clk 0:03:00.9]} 2. Nc3 {[%clk 0:03:00.3]}
2... Bg7 {[%clk 0:03:01.8]} 3. Bc4 {[%clk 0:03:00.6]} 3... d6 {[%clk 0:03:02.7]}
4. h4 {[%clk 0:02:49.2]} 4... Nf6 {[%clk 0:02:59.7]} 5. d3 {[%clk 0:02:43.5]}
5... c6 {[%clk 0:02:52.5]} 6. Bg5 {[%clk 0:02:39.3]} 6... a5 {[%clk 0:02:47.1]}
7. a4 {[%clk 0:02:35.8]} 7... Qb6 {[%clk 0:02:41.5]} 8. Nge2 {[%clk 0:02:28.9]}
8... Ng4 {[%clk 0:02:37]} 9. d4 {[%clk 0:02:18.1]} 9... e5 {[%clk 0:02:26]} 10.
Be3 {[%clk 0:01:56.1]} 10... Nxe3 {[%clk 0:02:20.2]} 11. fxe3 {[%clk 0:01:57]}
11... exd4 {[%clk 0:02:18.5]} 12. exd4 {[%clk 0:01:55.6]} 12... Bg4 {[%clk
0:02:12.5]} 13. Qd2 {[%clk 0:01:39.6]} 13... Nd7 {[%clk 0:01:50.6]} 14. O-O-O
{[%clk 0:01:27]} 14... f5 {[%clk 0:01:37.6]} 15. Be6 {[%clk 0:01:08.9]} 15...
O-O-O {[%clk 0:01:28.9]} 16. exf5 {[%clk 0:01:07.5]} 16... gxf5 {[%clk
0:01:26.6]} 17. Rdf1 {[%clk 0:01:00.7]} 17... Rhf8 {[%clk 0:01:10.3]} 18. h5
{[%clk 0:00:58.1]} 18... Rde8 {[%clk 0:01:03.5]} 19. h6 {[%clk 0:00:49.6]} 19...
Bh8 {[%clk 0:01:01.1]} 20. Bb3 {[%clk 0:00:39.2]} 20... Qb4 {[%clk 0:00:57]} 21.
Kb1 {[%clk 0:00:31.8]} 21... Bxe2 {[%clk 0:00:54.1]} 22. Re1 {[%clk 0:00:20.9]}
22... Bg4 {[%clk 0:00:52.8]} 23. Qf4 {[%clk 0:00:17.7]} 23... Qxd4 {[%clk
0:00:50.8]} 0-1

[Event "*** Titled Tuesday Blitz"]
[Site "Chess.com"]
[Date "2021.04.27"]
[Round "7"]
[White "fyall777"]
[Black "Matols"]
[Result "1-0"]
[WhiteElo "2412"]
[BlackElo "2258"]
[TimeControl "180+1"]
[EndTime "11:15:30 PDT"]
[Termination "fyall777 won by resignation"]

1. e4 {[%clk 0:02:59]} 1... e6 {[%clk 0:02:59.3]} 2. d4 {[%clk 0:02:59.1]} 2...
d5 {[%clk 0:02:59.5]} 3. Nc3 {[%clk 0:02:59.7]} 3... Nf6 {[%clk 0:02:58.4]} 4.
Bg5 {[%clk 0:02:58.7]} 4... Bb4 {[%clk 0:02:57.5]} 5. e5 {[%clk 0:02:55.9]} 5...
h6 {[%clk 0:02:57.1]} 6. Bd2 {[%clk 0:02:53.4]} 6... Bxc3 {[%clk 0:02:56]} 7.
bxc3 {[%clk 0:02:53.6]} 7... Ne4 {[%clk 0:02:55.9]} 8. Qg4 {[%clk 0:02:53.5]}
8... Kf8 {[%clk 0:02:49.2]} 9. Bd3 {[%clk 0:02:52.4]} 9... Nxd2 {[%clk
0:02:47.2]} 10. Kxd2 {[%clk 0:02:52.7]} 10... c5 {[%clk 0:02:47.4]} 11. f4
{[%clk 0:02:50]} 11... c4 {[%clk 0:02:43.8]} 12. Be2 {[%clk 0:02:49.2]} 12... b5
{[%clk 0:02:43.4]} 13. Nf3 {[%clk 0:02:44.6]} 13... a5 {[%clk 0:02:42]} 14. a3
{[%clk 0:02:44]} 14... Nc6 {[%clk 0:02:41.5]} 15. h4 {[%clk 0:02:39]} 15... Bd7
{[%clk 0:02:39.5]} 16. h5 {[%clk 0:02:38.5]} 16... b4 {[%clk 0:02:38.7]} 17.
axb4 {[%clk 0:02:35.1]} 17... axb4 {[%clk 0:02:38.6]} 18. cxb4 {[%clk
0:02:34.4]} 18... Nxb4 {[%clk 0:02:36.6]} 19. c3 {[%clk 0:02:28.4]} 19... Nd3
{[%clk 0:02:36]} 20. Bxd3 {[%clk 0:02:27.3]} 20... cxd3 {[%clk 0:02:35.8]} 21.
Kxd3 {[%clk 0:02:19.4]} 21... Bb5+ {[%clk 0:02:34.8]} 22. Ke3 {[%clk 0:02:15.8]}
22... Rxa1 {[%clk 0:02:14.6]} 23. Rxa1 {[%clk 0:02:13.8]} 23... Qc8 {[%clk
0:02:14.7]} 24. Ra3 {[%clk 0:02:05.3]} 24... Qc4 {[%clk 0:01:50.8]} 25. Kf2
{[%clk 0:02:01]} 25... Bc6 {[%clk 0:01:00.7]} 26. f5 {[%clk 0:01:56.9]} 26...
Qd3 {[%clk 0:00:19.5]} 27. fxe6 {[%clk 0:01:49.2]} 27... Qe4 {[%clk 0:00:16.3]}
28. e7+ {[%clk 0:01:32.3]} 28... Kxe7 {[%clk 0:00:15.3]} 29. Qxg7 {[%clk
0:01:30.7]} 29... Rb8 {[%clk 0:00:12.9]} 30. Ra7+ {[%clk 0:01:26.1]} 30... Bd7
{[%clk 0:00:12.5]} 31. Qf6+ {[%clk 0:01:18.4]} 31... Ke8 {[%clk 0:00:12.4]} 32.
Qh8+ {[%clk 0:01:18.1]} 32... Ke7 {[%clk 0:00:12.6]} 33. Qxb8 {[%clk 0:01:17.8]}
33... Qc2+ {[%clk 0:00:12.3]} 34. Kg3 {[%clk 0:01:18.1]} 1-0

[Event "*** Titled Tuesday Blitz"]
[Site "Chess.com"]
[Date "2021.04.27"]
[Round "7"]
[White "viktorgen2021"]
[Black "FMOlexandrProhorov"]
[Result "1-0"]
[WhiteElo "2389"]
[BlackElo "2255"]
[TimeControl "180+1"]
[EndTime "11:15:32 PDT"]
[Termination "viktorgen2021 won by resignation"]

1. d4 {[%clk 0:03:00.9]} 1... Nf6 {[%clk 0:02:56.7]} 2. Nf3 {[%clk 0:03:00.8]}
2... g6 {[%clk 0:02:53.1]} 3. c4 {[%clk 0:02:59.1]} 3... Bg7 {[%clk 0:02:50.2]}
4. Nc3 {[%clk 0:02:59.6]} 4... d5 {[%clk 0:02:48.2]} 5. g3 {[%clk 0:02:55.6]}
5... O-O {[%clk 0:02:42.2]} 6. Bg2 {[%clk 0:02:55.2]} 6... dxc4 {[%clk
0:02:29.2]} 7. O-O {[%clk 0:02:53.5]} 7... c5 {[%clk 0:02:18.2]} 8. d5 {[%clk
0:02:51.3]} 8... e6 {[%clk 0:02:00.9]} 9. e4 {[%clk 0:02:50.4]} 9... exd5 {[%clk
0:01:58.8]} 10. exd5 {[%clk 0:02:49.7]} 10... Bf5 {[%clk 0:01:58.8]} 11. Ne5
{[%clk 0:02:31.8]} 11... Ne8 {[%clk 0:01:25.5]} 12. Nxc4 {[%clk 0:02:30.3]}
12... Nd6 {[%clk 0:01:26.2]} 13. Nxd6 {[%clk 0:02:30.1]} 13... Qxd6 {[%clk
0:01:26.2]} 14. Bf4 {[%clk 0:02:30.6]} 14... Qb6 {[%clk 0:01:20]} 15. Qd2 {[%clk
0:02:27.6]} 15... Nd7 {[%clk 0:01:17.8]} 16. Rac1 {[%clk 0:02:26.1]} 16... Rac8
{[%clk 0:01:11.8]} 17. b3 {[%clk 0:02:23.1]} 17... a6 {[%clk 0:01:10]} 18. d6
{[%clk 0:02:18]} 18... Nf6 {[%clk 0:00:56.6]} 19. Rfd1 {[%clk 0:02:15.5]} 19...
Rfd8 {[%clk 0:00:55.7]} 20. Be5 {[%clk 0:02:08]} 20... Bg4 {[%clk 0:00:39.5]}
21. f3 {[%clk 0:02:03.4]} 21... Bf5 {[%clk 0:00:37.7]} 22. g4 {[%clk 0:01:59.5]}
22... Be6 {[%clk 0:00:38]} 23. h3 {[%clk 0:01:53.8]} 23... Qa5 {[%clk 0:00:33]}
24. f4 {[%clk 0:01:49]} 24... Qb4 {[%clk 0:00:30.1]} 25. Rf1 {[%clk 0:01:27.7]}
25... h5 {[%clk 0:00:27]} 26. f5 {[%clk 0:01:27.5]} 26... gxf5 {[%clk
0:00:26.3]} 27. gxf5 {[%clk 0:01:24.7]} 27... Bd7 {[%clk 0:00:26]} 28. Qg5
{[%clk 0:01:25.1]} 28... Kf8 {[%clk 0:00:04.8]} 29. Bxf6 {[%clk 0:01:24.1]}
29... Bxf6 {[%clk 0:00:05.1]} 30. Qxf6 {[%clk 0:01:25]} 30... Qd4+ {[%clk
0:00:02.1]} 31. Qxd4 {[%clk 0:01:24.8]} 31... cxd4 {[%clk 0:00:03]} 32. Nd5
{[%clk 0:01:25.5]} 32... Bc6 {[%clk 0:00:02.8]} 33. Nb6 {[%clk 0:01:24]} 33...
Rb8 {[%clk 0:00:02.5]} 34. Bxc6 {[%clk 0:01:23.6]} 34... bxc6 {[%clk 0:00:03]}
35. Rxc6 {[%clk 0:01:24.5]} 1-0

[Event "*** Titled Tuesday Blitz"]
[Site "Chess.com"]
[Date "2021.04.27"]
[Round "7"]
[White "Grieve72"]
[Black "dropstoneDP"]
[Result "0-1"]
[WhiteElo "2518"]
[BlackElo "2911"]
[TimeControl "180+1"]
[EndTime "11:15:34 PDT"]
[Termination "dropstoneDP won by checkmate"]

1. d4 {[%clk 0:03:00.9]} 1... Nf6 {[%clk 0:03:00.2]} 2. Bg5 {[%clk 0:03:00.9]}
2... c6 {[%clk 0:02:59.9]} 3. Bxf6 {[%clk 0:03:00.3]} 3... exf6 {[%clk
0:03:00.5]} 4. e3 {[%clk 0:02:59.5]} 4... Qb6 {[%clk 0:03:00.3]} 5. b3 {[%clk
0:02:58.2]} 5... d5 {[%clk 0:03:01.1]} 6. g3 {[%clk 0:02:53.9]} 6... h5 {[%clk
0:03:00.5]} 7. Bg2 {[%clk 0:02:50.6]} 7... h4 {[%clk 0:03:00.5]} 8. Ne2 {[%clk
0:02:47.9]} 8... h3 {[%clk 0:03:00.6]} 9. Bf3 {[%clk 0:02:48.1]} 9... g5 {[%clk
0:02:55.5]} 10. O-O {[%clk 0:02:47.1]} 10... Be6 {[%clk 0:02:55.5]} 11. Qd3
{[%clk 0:02:43.3]} 11... Nd7 {[%clk 0:02:53.1]} 12. c4 {[%clk 0:02:40.6]} 12...
dxc4 {[%clk 0:02:53.5]} 13. bxc4 {[%clk 0:02:41.5]} 13... Qa6 {[%clk 0:02:54.2]}
14. Nd2 {[%clk 0:02:36.6]} 14... Bb4 {[%clk 0:02:53.8]} 15. Nc3 {[%clk
0:01:57.1]} 15... Rd8 {[%clk 0:02:49.4]} 16. d5 {[%clk 0:01:17.6]} 16... Ne5
{[%clk 0:02:46.5]} 17. Qc2 {[%clk 0:01:05]} 17... cxd5 {[%clk 0:02:35.3]} 18.
Bxd5 {[%clk 0:00:57.4]} 18... Bxd5 {[%clk 0:02:25.2]} 19. Nxd5 {[%clk
0:00:44.6]} 19... Qc6 {[%clk 0:01:07.3]} 20. Ne4 {[%clk 0:00:44.3]} 20... Rxd5
{[%clk 0:01:04]} 21. Qb2 {[%clk 0:00:13.2]} 21... Rd2 {[%clk 0:00:58.6]} 22.
Nxf6+ {[%clk 0:00:08.6]} 22... Qxf6 {[%clk 0:00:55.9]} 23. Qxb4 {[%clk
0:00:08.4]} 23... Qf3 {[%clk 0:00:55.6]} 24. Qb5+ {[%clk 0:00:08]} 24... Nc6
{[%clk 0:00:55.9]} 25. Qxg5 {[%clk 0:00:05.2]} 25... Qg2# {[%clk 0:00:55.8]} 0-1

[Event "*** Titled Tuesday Blitz"]
[Site "Chess.com"]
[Date "2021.04.27"]
[Round "7"]
[White "GoValya"]
[Black "dodorox"]
[Result "1-0"]
[WhiteElo "2260"]
[BlackElo "2119"]
[TimeControl "180+1"]
[EndTime "11:15:36 PDT"]
[Termination "GoValya won on time"]

1. d4 {[%clk 0:02:59.6]} 1... Nf6 {[%clk 0:02:59.3]} 2. g3 {[%clk 0:02:58.9]}
2... d5 {[%clk 0:02:56.4]} 3. Bg2 {[%clk 0:02:50.6]} 3... e6 {[%clk 0:02:55.9]}
4. c4 {[%clk 0:02:48.7]} 4... dxc4 {[%clk 0:02:56.8]} 5. Nf3 {[%clk 0:02:48]}
5... c5 {[%clk 0:02:51.3]} 6. O-O {[%clk 0:02:44.7]} 6... Nc6 {[%clk 0:02:46.7]}
7. e3 {[%clk 0:02:41.9]} 7... cxd4 {[%clk 0:02:40.7]} 8. exd4 {[%clk 0:02:41.8]}
8... Be7 {[%clk 0:02:20.7]} 9. Qa4 {[%clk 0:02:38]} 9... O-O {[%clk 0:02:15.2]}
10. Qxc4 {[%clk 0:02:37.5]} 10... Bd7 {[%clk 0:01:35]} 11. Nc3 {[%clk
0:02:36.4]} 11... Rc8 {[%clk 0:01:33.9]} 12. Qe2 {[%clk 0:02:36]} 12... Nb4
{[%clk 0:01:22.2]} 13. Ne5 {[%clk 0:02:24.2]} 13... Nbd5 {[%clk 0:00:57.3]} 14.
Bd2 {[%clk 0:02:22.9]} 14... a6 {[%clk 0:00:51.7]} 15. Rfe1 {[%clk 0:02:20.7]}
15... Nxc3 {[%clk 0:00:46]} 16. bxc3 {[%clk 0:02:20.3]} 16... Bb5 {[%clk
0:00:46.7]} 17. c4 {[%clk 0:02:14.9]} 17... Ba4 {[%clk 0:00:21.2]} 18. Be3
{[%clk 0:02:01.3]} 18... Qc7 {[%clk 0:00:08.6]} 19. Rec1 {[%clk 0:01:53.6]}
19... Rfd8 {[%clk 0:00:07.1]} 20. Rab1 {[%clk 0:01:52.4]} 20... Bc6 {[%clk
0:00:07.2]} 21. Bxc6 {[%clk 0:01:39.5]} 21... bxc6 {[%clk 0:00:08.1]} 22. Qf3
{[%clk 0:01:29.5]} 22... Bd6 {[%clk 0:00:05.9]} 23. Bf4 {[%clk 0:01:27.4]} 23...
Nd7 {[%clk 0:00:04.3]} 24. Nxf7 {[%clk 0:00:59.4]} 24... Bxf4 {[%clk 0:00:02.4]}
25. Nxd8 {[%clk 0:00:59.1]} 25... Bxc1 {[%clk 0:00:02.5]} 26. Qf7+ {[%clk
0:00:58.7]} 1-0

[Event "*** Titled Tuesday Blitz"]
[Site "Chess.com"]
[Date "2021.04.27"]
[Round "7"]
[White "c_r_e_e_p_e_r"]
[Black "Pelopidass"]
[Result "1-0"]
[WhiteElo "2407"]
[BlackElo "2538"]
[TimeControl "180+1"]
[EndTime "11:15:37 PDT"]
[Termination "c_r_e_e_p_e_r won by resignation"]

1. d4 {[%clk 0:03:00.9]} 1... Nf6 {[%clk 0:02:59.8]} 2. c4 {[%clk 0:03:00.8]}
2... e6 {[%clk 0:02:59.7]} 3. Nc3 {[%clk 0:02:59.9]} 3... Bb4 {[%clk 0:02:59.6]}
4. e3 {[%clk 0:03:00.3]} 4... c5 {[%clk 0:02:59.4]} 5. Bd2 {[%clk 0:02:59.6]}
5... b6 {[%clk 0:02:55.8]} 6. Nf3 {[%clk 0:02:59.5]} 6... Bb7 {[%clk 0:02:55.3]}
7. Bd3 {[%clk 0:02:58.4]} 7... O-O {[%clk 0:02:55.7]} 8. O-O {[%clk 0:02:58.6]}
8... d6 {[%clk 0:02:52.3]} 9. a3 {[%clk 0:02:57.1]} 9... Bxc3 {[%clk 0:02:52.2]}
10. Bxc3 {[%clk 0:02:57.8]} 10... Ne4 {[%clk 0:02:51.1]} 11. Be1 {[%clk
0:02:58.1]} 11... f5 {[%clk 0:02:48.8]} 12. Nd2 {[%clk 0:02:54.2]} 12... Nd7
{[%clk 0:02:43.9]} 13. f3 {[%clk 0:02:52.9]} 13... Ng5 {[%clk 0:02:23]} 14. Bg3
{[%clk 0:02:49.5]} 14... e5 {[%clk 0:02:20.6]} 15. f4 {[%clk 0:02:46.4]} 15...
Ne4 {[%clk 0:02:12.7]} 16. Bxe4 {[%clk 0:02:39]} 16... fxe4 {[%clk 0:02:11.7]}
17. fxe5 {[%clk 0:02:39.1]} 17... cxd4 {[%clk 0:02:11.4]} 18. exd4 {[%clk
0:02:20.1]} 18... e3 {[%clk 0:02:08.1]} 19. Nf3 {[%clk 0:02:18.1]} 19... dxe5
{[%clk 0:02:06.2]} 20. Nxe5 {[%clk 0:02:15.6]} 20... Nxe5 {[%clk 0:02:04.5]} 21.
Bxe5 {[%clk 0:02:15.9]} 21... Qg5 {[%clk 0:02:04.1]} 22. Qe2 {[%clk 0:02:12.7]}
22... Rf2 {[%clk 0:01:49.6]} 23. Rxf2 {[%clk 0:02:07.7]} 23... exf2+ {[%clk
0:01:50.5]} 24. Qxf2 {[%clk 0:02:07.6]} 24... Rf8 {[%clk 0:01:50.9]} 25. Qg3
{[%clk 0:02:02.2]} 25... Qh6 {[%clk 0:01:46.5]} 26. d5 {[%clk 0:01:58.1]} 26...
b5 {[%clk 0:01:45.1]} 27. b3 {[%clk 0:01:28.1]} 27... Rf7 {[%clk 0:01:40.4]} 28.
Re1 {[%clk 0:01:21.5]} 28... Qd2 {[%clk 0:01:19.1]} 29. Qe3 {[%clk 0:01:13.3]}
29... Qc2 {[%clk 0:01:09.4]} 30. Rc1 {[%clk 0:00:54]} 30... Qa2 {[%clk
0:01:05.4]} 31. Bd6 {[%clk 0:00:26.4]} 31... g6 {[%clk 0:00:55.8]} 32. Qe8+
{[%clk 0:00:24]} 32... Kg7 {[%clk 0:00:55.7]} 33. Be5+ {[%clk 0:00:24.7]} 33...
Kh6 {[%clk 0:00:54.8]} 34. Qxf7 {[%clk 0:00:24.7]} 34... Qd2 {[%clk 0:00:54.3]}
35. Bf4+ {[%clk 0:00:23.7]} 1-0

[Event "*** Titled Tuesday Blitz"]
[Site "Chess.com"]
[Date "2021.04.27"]
[Round "7"]
[White "kakorrhaphiophobie"]
[Black "Jospem"]
[Result "0-1"]
[WhiteElo "2304"]
[BlackElo "2996"]
[TimeControl "180+1"]
[EndTime "11:15:39 PDT"]
[Termination "Jospem won by resignation"]

1. d4 {[%clk 0:03:00.9]} 1... Nf6 {[%clk 0:02:59.7]} 2. c4 {[%clk 0:02:59.7]}
2... e6 {[%clk 0:03:00.1]} 3. Nf3 {[%clk 0:02:59.6]} 3... Bb4+ {[%clk
0:03:00.1]} 4. Bd2 {[%clk 0:02:59.2]} 4... Qe7 {[%clk 0:02:59.8]} 5. e3 {[%clk
0:02:58.5]} 5... O-O {[%clk 0:02:58.8]} 6. Bd3 {[%clk 0:02:58]} 6... Bxd2+
{[%clk 0:02:58.5]} 7. Nbxd2 {[%clk 0:02:55]} 7... d6 {[%clk 0:02:59.4]} 8. e4
{[%clk 0:02:53.1]} 8... e5 {[%clk 0:02:59.8]} 9. O-O {[%clk 0:02:42.9]} 9... a5
{[%clk 0:02:57.1]} 10. h3 {[%clk 0:02:39.9]} 10... Nc6 {[%clk 0:02:56.2]} 11. d5
{[%clk 0:02:24.7]} 11... Nb4 {[%clk 0:02:55.9]} 12. Bb1 {[%clk 0:02:15.1]} 12...
Na6 {[%clk 0:02:53.5]} 13. Ne1 {[%clk 0:02:09.2]} 13... c6 {[%clk 0:02:53.2]}
14. Nd3 {[%clk 0:02:06.8]} 14... cxd5 {[%clk 0:02:52]} 15. cxd5 {[%clk
0:02:05.9]} 15... Bd7 {[%clk 0:02:52.1]} 16. Bc2 {[%clk 0:01:55.7]} 16... b5
{[%clk 0:02:51.4]} 17. a3 {[%clk 0:01:53.7]} 17... Rfc8 {[%clk 0:02:45.9]} 18.
Rc1 {[%clk 0:01:51.3]} 18... Qd8 {[%clk 0:02:45.3]} 19. Qe2 {[%clk 0:01:41.4]}
19... Qb6 {[%clk 0:02:42.1]} 20. Bb3 {[%clk 0:01:35.1]} 20... a4 {[%clk
0:02:25.6]} 21. Ba2 {[%clk 0:01:30]} 21... Nc5 {[%clk 0:02:25.8]} 22. Nb4 {[%clk
0:01:26.4]} 22... Rc7 {[%clk 0:02:22.7]} 23. Rc3 {[%clk 0:01:10.3]} 23... Rac8
{[%clk 0:02:22.3]} 24. Rfc1 {[%clk 0:01:08.4]} 24... h6 {[%clk 0:02:22.9]} 25.
Kh2 {[%clk 0:01:07.7]} 25... Re8 {[%clk 0:02:20.3]} 26. g4 {[%clk 0:00:57.2]}
26... Rcc8 {[%clk 0:02:18.3]} 27. f3 {[%clk 0:00:55.3]} 27... Nh7 {[%clk
0:02:14.6]} 28. Nf1 {[%clk 0:00:54.3]} 28... Nf8 {[%clk 0:02:14]} 29. Ne3 {[%clk
0:00:48.8]} 29... Ng6 {[%clk 0:02:14.2]} 30. Ng2 {[%clk 0:00:49.1]} 30... Qd8
{[%clk 0:02:12.4]} 31. Kg3 {[%clk 0:00:48.7]} 31... h5 {[%clk 0:02:11.9]} 32. h4
{[%clk 0:00:46.1]} 32... hxg4 {[%clk 0:02:08.3]} 33. fxg4 {[%clk 0:00:46.2]}
33... Nf4 {[%clk 0:02:08.9]} 34. Qf3 {[%clk 0:00:38.4]} 34... g5 {[%clk
0:02:08.3]} 35. h5 {[%clk 0:00:38.1]} 35... Qf6 {[%clk 0:02:03.3]} 36. Ne3
{[%clk 0:00:37.1]} 36... Rc7 {[%clk 0:02:00.5]} 37. Nf5 {[%clk 0:00:35.1]} 37...
Rec8 {[%clk 0:02:00.3]} 38. Bb1 {[%clk 0:00:33.2]} 38... Kh8 {[%clk 0:02:00]}
39. Kh2 {[%clk 0:00:30.7]} 39... Bxf5 {[%clk 0:02:00.2]} 40. exf5 {[%clk
0:00:30.8]} 40... e4 {[%clk 0:01:54.3]} 41. Bxe4 {[%clk 0:00:29.4]} 41... Re8
{[%clk 0:01:52.9]} 42. Re3 {[%clk 0:00:25.1]} 42... Rce7 {[%clk 0:01:51.4]} 43.
Rxc5 {[%clk 0:00:17.3]} 43... dxc5 {[%clk 0:01:49.7]} 44. Nc6 {[%clk 0:00:17.6]}
44... Qxb2+ {[%clk 0:01:49.8]} 45. Kg3 {[%clk 0:00:17.9]} 45... Qc1 {[%clk
0:01:39.3]} 46. Qf2 {[%clk 0:00:17.3]} 46... Rxe4 {[%clk 0:01:36.9]} 47. Rxe4
{[%clk 0:00:15.9]} 47... Rxe4 {[%clk 0:01:37.8]} 48. d6 {[%clk 0:00:14.1]} 48...
Re3+ {[%clk 0:01:36]} 0-1